bitfinex/quotes_ETHUSD_20240819
["timestamp","ask_amount","ask_price","bid_price","bid_amount"]
[1724087806391,3.86578,2586.8,2586.3,6.27901]
[1724087806636,3.86578,2586.8,2586.7,0.07753976]
[1724087806871,3.86578,2586.8,2586.3,6.27901]
[1724087807042,3.86578,2586.8,2586.7,0.07753976]
[1724087807241,3.86605,2586.7,2586.3,2.4125]
[1724087807447,9.7461,2587.3,2586.0,2.4117]
[1724087807448,3.86646,2586.4,2586.0,2.4117]
[1724087807634,2.3548,2586.9,2586.0,2.4117]
[1724087807635,7.36,2586.7,2586.0,5.4117]
[1724087807834,3.86644,2586.4,2586.0,5.4117]
[1724087808664,3.86624,2586.5,2586.0,9.27867]
[1724087808980,15.09203,2586.7,2586.2,3.86659]
[1724087809145,11.226,2586.7,2586.2,3.86659]
[1724087809868,15.09204,2586.7,2586.2,3.86659]
[1724087810083,7.36,2586.7,2586.3,6.24113]
[1724087810445,7.36,2586.7,2586.5,3.86614]
[1724087810758,7.36,2586.7,2586.5,7.7323]
[1724087810952,3.86549,2587.0,2586.6,0.07753976]
[1724087811170,7.73106,2587.0,2586.6,0.07753976]
[1724087811489,5.609646,2587.0,2586.6,0.07753976]
[1724087811693,3.8657,2586.9,2586.6,0.07753976]
[1724087811844,3.86549,2587.0,2586.6,3.94359976]
[1724087812047,11.22533,2587.1,2586.6,7.80957976]
[1724087812344,19.52,2587.4,2586.9,3.86556]
[1724087812744,19.52,2587.4,2587.0,0.07733542]
[1724087813011,19.52,2587.4,2587.2,3.8651]
[1724087813148,3.86466,2587.6,2587.1,2.54803542]
[1724087813349,3.86466,2587.6,2587.1,6.336]
[1724087813547,4.637658,2587.5,2587.2,0.07733542]
[1724087813744,3.86476,2587.5,2586.6,2.4332]
[1724087813944,3.86555,2587.0,2586.6,2.4332]
[1724087814304,3.86555,2587.0,2586.5,3.86609]
[1724087814797,7.73112,2587.0,2586.5,3.86609]
[1724087814973,3.86574,2586.9,2586.4,2.4332]
[1724087815172,4.864422,2587.0,2586.2,3.86658]
[1724087815173,3.866,2586.7,2586.2,3.86658]
[1724087815372,3.86578,2586.8,2586.3,3.8665]
[1724087815557,3.86578,2586.8,2586.3,7.73293]
[1724087815762,3.86578,2586.8,2586.3,3.86643]
[1724087816145,8.730052,2587.0,2586.4,3.86634]
[1724087816391,0.4864432,2586.9,2586.4,3.86634]
[1724087816596,0.4864432,2586.9,2586.5,2.4332]
[1724087817177,13.48281,2587.2,2586.5,2.4332]
[1724087817504,11.22521,2587.2,2586.6,3.86607]
[1724087817716,11.22521,2587.2,2586.7,3.86584]
[1724087818190,7.36,2587.2,2586.8,3.86574]
[1724087818402,16.02496,2587.4,2586.9,6.19391]
[1724087818549,12.16,2587.4,2587.0,3.86539]
[1724087818744,7.36,2587.5,2587.0,3.86539]
[1724087818945,7.72986,2587.4,2586.9,2.3283]
[1724087819148,9.238896,2587.4,2586.9,6.19392]
[1724087819360,3.86525,2587.2,2586.7,6.19411]
[1724087820264,3.86503,2587.3,2586.8,3.8657]
[1724087820793,3.86518,2587.2,2586.8,3.8657]
[1724087821592,3.86558,2587.0,2586.5,3.8661]
[1724087821841,3.86566,2586.9,2586.5,2.3666]
[1724087822003,3.86566,2586.9,2586.3,6.23311]
[1724087822004,3.86574,2586.9,2586.3,6.23311]
[1724087822205,3.86591,2586.8,2586.3,10.09956]
[1724087822355,3.86574,2586.9,2586.4,3.86635]
[1724087822747,11.22544,2587.1,2586.6,3.86607]
[1724087822952,9.111365,2587.1,2586.7,3.86583]
[1724087823178,9.111365,2587.1,2586.7,6.13333]
[1724087823902,9.111365,2587.1,2586.7,2.2675]
[1724087823903,7.36,2587.1,2586.7,2.2675]
[1724087824107,7.36,2587.1,2586.7,6.13335]
[1724087824268,7.36,2587.1,2586.8,3.86569]
[1724087825403,7.36,2587.1,2586.9,0.07557934]
[1724087825602,3.86519,2587.2,2586.9,0.07557934]
[1724087825958,3.86519,2587.2,2586.8,3.86569]
[1724087826158,3.86519,2587.2,2587.0,0.07557934]
[1724087826393,3.86519,2587.2,2586.8,3.86569]
[1724087826858,3.86503,2587.3,2586.8,7.73135]
[1724087827062,7.36,2587.5,2586.7,2.2675]
[1724087827063,11.2248,2587.5,2586.7,2.2675]
[1724087827267,11.2248,2587.5,2587.1,6.26242]
[1724087827470,11.2248,2587.5,2587.1,6.26235]
[1724087827471,7.36,2587.5,2587.1,6.26235]
[1724087827778,7.36,2587.5,2587.2,0.07552004]
[1724087828352,7.36,2587.5,2587.2,3.94069004]
[1724087828752,7.36,2587.5,2587.3,3.86501]
[1724087829180,7.36,2587.5,2587.4,0.07552004]
[1724087829464,7.36,2587.5,2587.1,6.26235]
[1724087829941,7.36,2587.5,2587.2,0.07552004]
[1724087830663,7.36,2587.5,2587.2,3.94069004]
[1724087831032,7.36,2587.5,2587.3,3.865]
[1724087831417,7.36,2587.5,2587.2,3.86516]
[1724087831656,7.36,2587.5,2587.4,0.07552004]
[1724087831961,3.86444,2587.7,2587.4,0.07552004]
[1724087832261,3.86444,2587.7,2587.2,3.8651]
[1724087832462,3.86444,2587.7,2587.5,0.07552004]
[1724087832764,3.86425,2587.9,2587.6,0.07552004]
[1724087832931,3.86425,2587.9,2587.4,3.86479]
[1724087833117,3.86425,2587.9,2587.7,0.07552004]
[1724087833324,3.86425,2587.9,2587.4,3.86479]
[1724087833525,3.86425,2587.9,2587.8,0.07552004]
[1724087833755,11.22399,2588.0,2587.5,3.86466]
[1724087833924,11.22399,2588.0,2587.8,0.07552004]
[1724087834121,11.22399,2588.0,2587.5,3.86465]
[1724087834333,11.22399,2588.0,2587.9,0.07552004]
[1724087834548,11.22399,2588.0,2587.5,3.86465]
[1724087834750,11.22399,2588.0,2587.9,0.07552004]
[1724087834949,3.86348,2588.4,2587.9,6.22893]
[1724087835117,11.22325,2588.5,2588.0,3.86391]
[1724087835449,11.22332,2588.5,2588.0,4.880736]
[1724087835638,7.36,2588.5,2588.1,3.93870047]
[1724087835837,7.36,2588.5,2588.1,0.07494047]
[1724087836032,7.36,2588.5,2588.1,3.86371]
[1724087836397,7.36,2588.5,2588.2,0.07494047]
[1724087837034,3.86339,2588.4,2588.2,0.07494047]
[1724087837593,9.250489,2588.4,2588.3,0.07459819]
[1724087837718,5.387029,2588.4,2587.9,6.22887]
[1724087837918,5.387029,2588.4,2588.3,0.07364346]
[1724087838122,5.387029,2588.4,2587.9,6.22887]
[1724087838353,3.86339,2588.4,2588.3,0.07364346]
[1724087838553,3.86339,2588.4,2588.0,3.86395]
[1724087838871,3.86339,2588.4,2588.3,0.07364346]
[1724087839386,3.86354,2588.3,2587.9,6.22892]
[1724087839743,3.8634,2588.4,2587.9,6.22885]
[1724087840129,3.8634,2588.4,2587.9,10.09291]
[1724087840328,3.8634,2588.4,2588.0,0.07371585]
[1724087840644,11.22326,2588.5,2588.0,3.93769585]
[1724087841244,7.36,2588.5,2588.1,3.86375]
[1724087841555,7.36,2588.5,2588.2,3.93734902]
[1724087841926,7.36,2588.5,2588.3,3.86352]
[1724087842133,7.36,2588.5,2588.3,6.15752]
[1724087842329,7.36,2588.5,2588.4,3.93709269]
[1724087842528,0.1499,2588.6,2588.4,3.93709269]
[1724087842759,0.1499,2588.6,2588.5,3.86324]
[1724087842944,0.1499,2588.6,2588.5,3.93693611]
[1724087844927,0.1499,2588.6,2588.5,0.07369611]
[1724087845127,0.1499,2588.6,2588.5,3.93693611]
[1724087845329,0.1499,2588.6,2588.5,7.80017611]
[1724087845477,0.1499,2588.6,2588.5,11.18663985]
[1724087846162,7.36,2589.0,2588.6,3.863]
[1724087846329,7.36,2589.0,2588.7,3.86291]
[1724087846626,3.862,2589.4,2588.9,6.13874]
[1724087846828,3.862,2589.4,2588.9,7.14619568]
[1724087846995,3.86206,2589.3,2588.9,6.1387]
[1724087847195,3.86206,2589.3,2589.0,0.07338027]
[1724087847928,3.8622,2589.2,2588.8,3.86278]
[1724087848077,3.8622,2589.2,2589.1,0.07328817]
[1724087848289,3.86204,2589.3,2589.1,0.07328817]
[1724087848488,3.86204,2589.3,2588.8,7.72544]
[1724087848793,3.86221,2589.2,2588.9,0.84583217]
[1724087849036,3.86221,2589.2,2588.9,0.07328817]
[1724087850034,3.86241,2589.1,2588.6,6.15136]
[1724087850237,3.86241,2589.1,2589.0,0.07278814]
[1724087850447,3.86255,2589.0,2588.6,2.2884]
[1724087850600,7.72513,2589.0,2588.6,2.2884]
[1724087850935,3.86255,2589.0,2588.6,2.2884]
[1724087851134,3.863,2588.7,2588.3,2.4872]
[1724087851292,3.863,2588.7,2588.3,6.35067]
[1724087851492,3.863,2588.7,2588.3,2.4872]
[1724087851726,3.8634,2588.4,2588.1,2.4872]
[1724087852492,3.86324,2588.5,2588.1,2.4872]
[1724087852735,3.86324,2588.5,2588.1,7.08781846]
[1724087852937,3.86324,2588.5,2588.1,3.22399846]
[1724087853639,3.8636,2588.3,2587.8,2.4202]
[1724087854007,3.8636,2588.3,2587.8,6.28447]
[1724087854398,3.86369,2588.2,2587.8,6.28447]
[1724087854596,2.3152,2588.8,2587.5,7.90961]
[1724087854597,2.3086,2588.4,2587.5,2.4202]
[1724087855005,3.86379,2588.2,2587.5,6.28485]
[1724087855205,3.86398,2588.0,2587.5,10.1495]
[1724087855410,3.86398,2588.0,2587.6,0.07278814]
[1724087855606,3.86398,2588.0,2587.6,1.09501695]
[1724087856106,3.86354,2588.3,2587.7,3.86432]
[1724087856507,3.86354,2588.3,2587.8,0.07278814]
[1724087856741,3.86354,2588.3,2587.8,3.93697814]
[1724087856951,3.86372,2588.2,2587.8,0.07278814]
[1724087857121,3.86372,2588.2,2587.6,1.02222881]
[1724087857303,3.86372,2588.2,2587.9,0.07278814]
[1724087857651,3.86354,2588.3,2587.9,2.4672]
[1724087857855,3.86354,2588.3,2588.0,0.07278814]
[1724087858950,3.86381,2588.2,2588.0,0.07278814]
[1724087859250,7.36,2588.5,2587.6,2.4672]
[1724087859251,3.86409,2588.0,2587.6,2.4672]
[1724087859814,3.86369,2588.2,2587.7,3.86431]
[1724087860015,3.86393,2588.1,2587.6,2.4672]
[1724087860362,3.86406,2588.0,2587.6,2.4672]
[1724087861650,3.86393,2588.1,2587.6,6.33177]
[1724087861859,3.86393,2588.1,2587.6,6.964887]
[1724087862645,3.8637,2588.2,2587.6,3.100377]
[1724087862958,3.8634,2588.4,2587.8,3.86424]
[1724087863158,3.8634,2588.4,2587.9,3.86407]
[1724087863159,7.72692,2588.4,2587.9,3.86407]
[1724087863383,7.36,2588.5,2588.1,3.8637]
[1724087863539,3.86294,2588.7,2588.2,2.4047]
[1724087863734,7.72597,2588.7,2588.2,2.4047]
[1724087863935,3.86315,2588.6,2588.2,6.26837]
[1724087864375,3.86315,2588.6,2588.2,7.281577]
[1724087865046,3.86335,2588.5,2588.2,2.4047]
[1724087865474,3.8634,2588.4,2588.2,2.4047]
[1724087866175,3.86325,2588.5,2588.2,2.4047]
[1724087868448,3.86376,2588.2,2587.9,2.4082]
[1724087868775,3.86375,2588.2,2587.9,2.4082]
[1724087870081,3.8635,2588.4,2588.0,3.86397]
[1724087870082,3.86341,2588.4,2588.0,3.86397]
[1724087870281,8.1582341,2588.8,2587.9,3.335446]
[1724087870463,8.1582341,2588.8,2588.3,2.2707]
[1724087870464,3.86311,2588.6,2588.3,2.2707]
[1724087870635,3.86302,2588.7,2588.3,2.2707]
[1724087870836,3.86288,2588.8,2588.4,0.07397253]
[1724087871036,3.86295,2588.7,2588.4,0.07397253]
[1724087871232,3.86317,2588.6,2588.4,0.07397253]
[1724087871851,3.86324,2588.5,2588.4,0.07397253]
[1724087872051,7.72648,2588.5,2588.4,0.07397253]
[1724087872380,3.86353,2588.3,2587.9,2.2707]
[1724087873679,3.86353,2588.3,2587.9,6.1348]
[1724087873893,3.8634,2588.4,2587.9,6.1348]
[1724087874050,3.8634,2588.4,2587.9,7.4347]
[1724087874451,3.8634,2588.4,2588.0,3.86398]
[1724087874730,3.8634,2588.4,2588.0,3.86392]
[1724087875383,3.86314,2588.6,2588.0,3.86385]
[1724087875689,3.86339,2588.4,2587.9,7.43471]
[1724087876194,7.72688,2588.4,2587.9,7.43471]
[1724087876695,3.86373,2588.2,2587.9,2.2707]
[1724087877194,3.86358,2588.3,2587.9,2.2707]
[1724087877394,5.88286111,2588.5,2588.0,3.86391]
[1724087878051,5.88286111,2588.5,2588.0,7.72775]
[1724087878279,5.88267111,2588.6,2588.1,6.36359]
[1724087878898,3.86339,2588.4,2588.1,2.4999]
[1724087879476,5.88277111,2588.5,2588.1,2.4999]
[1724087880005,5.88497321,2588.5,2588.1,2.4999]
[1724087880512,3.86392,2588.1,2587.8,2.3374]
[1724087882076,2.02172321,2588.3,2587.9,3.86404]
[1724087882278,2.42606785,2588.5,2588.1,3.86381]
[1724087882279,2.02172321,2588.5,2588.1,3.86381]
[1724087882478,2.02172321,2588.5,2588.1,3.86382]
[1724087882793,5.88503321,2588.5,2588.0,10.06525]
[1724087882994,5.88505376,2588.5,2588.0,7.612325]
[1724087883209,5.88505376,2588.5,2588.1,3.86382]
[1724087883716,2.02174376,2588.5,2588.1,3.86382]
[1724087883899,2.02174376,2588.5,2588.2,3.86365]
[1724087884093,9.38174376,2588.7,2588.4,2.3993]
[1724087884293,9.38174376,2588.7,2588.4,6.26267]
[1724087884497,7.36,2588.7,2588.4,6.26267]
[1724087884749,7.36,2588.7,2588.4,7.275302]
[1724087885026,2.02174376,2588.8,2588.4,7.275192]
[1724087885231,2.42609251,2589.0,2588.4,7.275192]
[1724087885232,2.02174376,2589.0,2588.6,3.86299]
[1724087885532,5.88431376,2589.0,2588.7,0.071842]
[1724087885844,2.02174376,2588.9,2588.7,0.071842]
[1724087886026,5.88431376,2589.0,2588.5,3.86322]
[1724087886183,5.88431376,2589.0,2588.6,0.79935062]
[1724087886687,5.88438376,2588.9,2588.6,0.79935062]
[1724087886914,5.88438376,2588.9,2588.6,0.07183542]
[1724087887230,3.86264,2588.9,2588.6,0.07183542]
[1724087887399,3.86294,2588.7,2588.6,0.07183542]
[1724087887599,5.88480236,2588.8,2588.6,0.07170381]
[1724087887797,5.88480236,2588.8,2588.2,3.0]
[1724087887798,3.86311,2588.6,2588.2,3.0]
[1724087888013,3.86311,2588.6,2588.3,0.07170381]
[1724087888014,3.86325,2588.5,2588.3,0.07170381]
[1724087888216,3.86325,2588.5,2588.1,2.3092]
[1724087888217,3.86311,2588.6,2588.1,2.3092]
[1724087888554,3.86311,2588.6,2588.2,0.07170381]
[1724087888686,5.88496236,2588.7,2588.2,3.93536381]
[1724087889036,3.86288,2588.8,2588.2,0.07170381]
[1724087889037,2.02201236,2588.8,2588.2,0.07170381]
[1724087889202,6.71599008,2588.8,2588.2,0.07170381]
[1724087889527,3.8631,2588.6,2588.1,3.86376]
[1724087889727,9.74780236,2588.8,2588.3,0.07170381]
[1724087890031,5.88496236,2588.7,2588.2,3.86367]
[1724087890214,3.86295,2588.7,2588.2,3.86367]
[1724087890543,3.86309,2588.6,2588.3,0.07170381]
[1724087890834,3.86309,2588.6,2588.1,3.86378]
[1724087890998,3.86316,2588.6,2588.2,0.07170381]
[1724087891205,7.72636,2588.6,2588.0,7.72776]
[1724087891429,3.86316,2588.6,2588.1,3.8638]
[1724087891729,3.86341,2588.4,2588.2,0.07170381]
[1724087892227,3.86341,2588.4,2587.9,9.17332]
[1724087892398,3.86341,2588.4,2588.3,0.07170381]
[1724087892600,3.86341,2588.4,2587.9,6.612951]
[1724087892601,2.02223308,2588.4,2587.7,2.4373]
[1724087892820,2.02223308,2588.4,2588.3,0.07153268]
[1724087892821,7.72678,2588.4,2588.3,0.07153268]
[1724087893315,7.72678,2588.4,2587.7,2.4373]
[1724087893316,3.86383,2588.2,2587.7,2.4373]
[1724087893490,5.88684993,2588.1,2587.7,2.4373]
[1724087893690,5.88684993,2588.1,2587.8,0.07172352]
[1724087893931,3.86413,2587.9,2587.8,0.07172352]
[1724087894493,3.86428,2587.8,2587.4,2.4373]
[1724087894710,3.86428,2587.8,2587.4,6.772021]
[1724087894920,3.86483,2587.5,2587.2,2.4373]
[1724087895136,3.86483,2587.5,2586.9,6.30291]
[1724087895289,3.86481,2587.5,2586.9,2.4373]
[1724087895490,3.86501,2587.4,2586.9,2.4373]
[1724087895706,3.86501,2587.4,2586.9,6.933199]
[1724087897797,5.88758993,2587.6,2587.0,3.86547]
[1724087898143,2.02299993,2587.7,2587.2,3.86507]
[1724087898298,5.88735993,2587.8,2587.3,2.4751]
[1724087898497,3.86451,2587.7,2587.3,2.4751]
[1724087899232,5.88728993,2587.8,2587.3,3.109114]
[1724087899906,3.86444,2587.7,2587.3,3.109114]
[1724087900317,3.86444,2587.7,2587.3,6.974144]
[1724087900528,3.86444,2587.7,2587.4,0.07201974]
[1724087901944,5.88512671,2587.8,2587.4,0.07201974]
[1724087902263,7.72868,2587.8,2587.4,0.07201974]
[1724087902968,3.8645,2587.7,2587.4,0.07201974]
[1724087903528,3.86459,2587.6,2587.4,0.07201974]
[1724087903872,3.86445,2587.7,2587.4,0.07201974]
[1724087904080,3.86467,2587.6,2587.4,0.07201974]
[1724087904302,3.86473,2587.5,2587.4,0.07201974]
[1724087904579,3.86498,2587.4,2587.0,2.3579]
[1724087905578,3.86461,2587.6,2587.0,2.3579]
[1724087905722,3.86461,2587.6,2587.0,2.59369]
[1724087906155,3.8648,2587.5,2587.0,6.45905]
[1724087906373,3.8648,2587.5,2587.1,3.86526]
[1724087906537,3.86459,2587.6,2587.1,3.86526]
[1724087906738,3.86459,2587.6,2587.1,4.897706]
[1724087906941,3.8645,2587.7,2587.1,1.032446]
[1724087907179,3.86459,2587.6,2587.2,7.73032]
[1724087907483,11.22441,2587.8,2586.6,3.86596]
[1724087907484,3.86524,2587.2,2586.6,3.86596]
[1724087907690,2.3349,2587.4,2586.6,3.86596]
[1724087907691,3.86504,2587.3,2586.8,3.86567]
[1724087907984,6.1999,2587.4,2586.9,3.86553]
[1724087908192,6.19986,2587.4,2586.9,3.86553]
[1724087908481,6.19986,2587.4,2586.9,4.88651]
[1724087908482,10.06483,2587.4,2586.9,4.88651]
[1724087908715,6.19986,2587.4,2586.9,4.88651]
[1724087908837,6.19986,2587.4,2587.0,3.86546]
[1724087909032,3.86496,2587.4,2587.0,3.86546]
[1724087909237,3.86489,2587.4,2587.0,3.86546]
[1724087909462,3.86489,2587.4,2587.0,4.740657]
[1724087909681,7.72989,2587.4,2587.0,0.875197]
[1724087909863,3.86489,2587.4,2586.9,3.86556]
[1724087910067,3.86475,2587.5,2587.0,3.86539]
[1724087910247,3.86475,2587.5,2587.1,6.18402]
[1724087910967,3.86461,2587.6,2587.1,6.18402]
[1724087911504,3.86447,2587.7,2587.1,6.18402]
[1724087911639,3.86459,2587.6,2587.1,7.188961]
[1724087912085,7.36,2587.8,2587.3,3.86496]
[1724087912385,3.8646,2587.6,2587.2,3.86516]
[1724087912583,2.4976,2588.0,2587.1,2.3188]
[1724087912584,3.8648,2587.5,2587.1,2.3188]
[1724087912737,7.72962,2587.5,2587.1,2.3188]
[1724087913140,3.8648,2587.5,2587.1,6.18404]
[1724087913385,3.8648,2587.5,2587.1,6.74362565]
[1724087913685,3.8648,2587.5,2587.2,0.07258594]
[1724087913842,7.72962,2587.5,2587.2,0.07258594]
[1724087914041,3.8648,2587.5,2587.2,0.07258594]
[1724087915392,8.37992967,2588.0,2587.5,3.86462]
[1724087915393,3.86406,2588.0,2587.5,3.86462]
[1724087915689,3.86406,2588.0,2587.3,2.3968]
[1724087915690,19.52,2588.1,2587.7,6.26122]
[1724087915854,19.52,2588.1,2587.8,0.07263864]
[1724087916040,19.52,2588.1,2587.7,6.26122]
[1724087916244,27.24778,2588.1,2587.7,2.3968]
[1724087916452,27.24779,2588.1,2587.8,0.07263864]
[1724087916659,23.38384,2588.1,2587.7,2.3968]
[1724087916858,3.86406,2588.0,2587.5,6.29741]
[1724087917073,3.86413,2587.9,2587.6,1.01622]
[1724087917292,3.86413,2587.9,2587.7,0.07263864]
[1724087917457,7.72834,2587.9,2587.5,2.4327]
[1724087917649,3.86445,2587.7,2587.3,2.4139]
[1724087917988,21.95,2588.1,2587.1,0.55958565]
[1724087917989,3.86471,2587.6,2587.4,0.07263864]
[1724087918473,3.86471,2587.6,2587.5,0.07263864]
[1724087918675,3.86429,2587.8,2587.3,3.86502]
[1724087918985,3.86429,2587.8,2587.4,0.07263864]
[1724087919346,3.86452,2587.7,2587.4,0.07263864]
[1724087919760,3.86452,2587.7,2587.2,3.86517]
[1724087920035,3.86461,2587.6,2587.5,0.07263864]
[1724087920264,5.88290376,2588.0,2587.1,6.27921]
[1724087920265,3.86474,2587.5,2587.1,6.27921]
[1724087920460,3.86495,2587.4,2587.1,2.4139]
[1724087920682,3.86474,2587.5,2587.1,2.4139]
[1724087920683,3.8648,2587.5,2587.1,2.4139]
[1724087921174,3.86459,2587.6,2587.1,7.0945858]
[1724087921380,3.86459,2587.6,2587.2,3.86517]
[1724087921843,3.86459,2587.6,2587.1,7.0946058]
[1724087922452,3.86459,2587.6,2587.2,3.86517]
[1724087922653,7.72926,2587.6,2587.1,7.0946058]
[1724087922851,7.72925,2587.6,2587.1,7.0946058]
[1724087923063,3.86459,2587.6,2587.1,7.0946058]
[1724087924464,3.86475,2587.5,2587.1,7.0946058]
[1724087924947,3.86459,2587.6,2587.1,7.0946058]
[1724087925393,7.72925,2587.6,2587.1,7.0946058]
[1724087925575,3.86474,2587.5,2587.1,3.2292858]
[1724087925788,3.8649,2587.4,2587.1,2.4139]
[1724087926364,3.86474,2587.5,2587.1,2.4139]
[1724087926570,3.86542,2587.1,2586.6,2.252]
[1724087926766,3.86585,2586.8,2586.3,2.252]
[1724087926963,7.7323,2586.6,2586.3,2.252]
[1724087927193,7.7323,2586.6,2586.1,3.8668]
[1724087927194,3.86633,2586.5,2586.1,2.252]
[1724087927603,3.86633,2586.5,2586.1,6.11876]
[1724087927899,3.86607,2586.7,2586.1,7.117326]
[1724087928064,3.86607,2586.7,2586.2,3.8666]
[1724087928265,3.86607,2586.7,2586.2,7.73321]
[1724087928664,3.86607,2586.7,2586.2,3.8666]
[1724087928869,3.86607,2586.7,2586.2,7.7332]
[1724087929064,3.86607,2586.7,2586.2,4.9649766]
[1724087929507,3.86608,2586.6,2586.2,4.9649766]
[1724087930169,3.86593,2586.7,2586.2,4.9649766]
[1724087930497,3.86593,2586.7,2586.3,0.07359383]
[1724087930651,3.86593,2586.7,2586.2,8.8315766]
[1724087930996,3.86593,2586.7,2586.3,0.54916213]
[1724087931195,3.86551,2587.0,2586.5,6.28669]
[1724087931365,3.86551,2587.0,2586.5,10.15284]
[1724087931702,7.73108,2587.0,2586.6,0.07359383]
[1724087931906,7.73111,2587.0,2586.6,0.07359383]
[1724087932257,3.86563,2586.9,2586.6,0.07359383]
[1724087933010,3.8655,2587.0,2586.6,0.70962221]
[1724087933296,3.8655,2587.0,2586.6,4.57569221]
[1724087934987,3.8655,2587.0,2586.6,0.70962221]
[1724087935412,7.73107,2587.0,2586.6,0.70962221]
[1724087935599,7.73108,2587.0,2586.6,0.70962221]
[1724087936140,3.8655,2587.0,2586.6,0.70962221]
[1724087936542,3.86563,2586.9,2586.6,0.07359383]
[1724087936846,3.86578,2586.8,2586.6,0.07359383]
[1724087937700,3.86578,2586.8,2586.4,3.86636]
[1724087937902,3.8656,2587.0,2586.5,0.07359383]
[1724087938214,3.8656,2587.0,2585.7,3.86739]
[1724087938215,3.86639,2586.4,2586.1,2.4592]
[1724087938750,3.86639,2586.4,2586.0,3.0]
[1724087938984,3.86639,2586.4,2586.0,6.86695]
[1724087939192,3.86655,2586.3,2585.9,2.4592]
[1724087939338,3.86655,2586.3,2585.8,3.86725]
[1724087939680,3.86655,2586.3,2585.9,3.8671]
[1724087940249,7.73345,2586.2,2585.7,6.32654]
[1724087940563,3.86667,2586.2,2585.7,6.32654]
[1724087940764,3.86667,2586.2,2585.7,3.86734]
[1724087941131,3.86686,2586.1,2585.7,3.86734]
[1724087941358,3.86686,2586.1,2585.7,0.52827948]
[1724087941559,3.86686,2586.1,2585.5,6.32684]
[1724087941560,3.86699,2586.0,2585.5,6.32684]
[1724087941960,3.86699,2586.0,2585.5,2.4592]
[1724087941961,3.86727,2585.8,2585.5,2.4592]
[1724087942358,3.86749,2585.7,2585.2,3.86802]
[1724087942610,3.86749,2585.7,2585.2,0.619042]
[1724087942749,3.86723,2585.9,2585.3,3.86792]
[1724087943085,3.86698,2586.0,2585.6,3.86756]
[1724087943283,3.86669,2586.2,2585.6,3.86745]
[1724087943480,3.86684,2586.1,2585.6,3.86756]
[1724087943684,3.86684,2586.1,2585.6,3.8675]
[1724087944036,6.32723,2586.3,2585.6,4.56449471]
[1724087944377,3.86668,2586.2,2585.8,3.86726]
[1724087944591,3.86668,2586.2,2585.7,3.8674]
[1724087944783,3.86683,2586.1,2585.7,3.8674]
[1724087945284,6.32721,2586.3,2585.7,3.8674]
[1724087945491,6.32721,2586.3,2585.8,0.07232047]
[1724087945642,6.32721,2586.3,2585.7,3.8674]
[1724087945980,3.86683,2586.1,2585.8,0.07232047]
[1724087946339,3.86683,2586.1,2585.7,3.8674]
[1724087946545,3.86683,2586.1,2585.9,0.07232047]
[1724087946783,7.73375,2586.1,2585.6,4.56454471]
[1724087946941,3.86683,2586.1,2586.0,0.07232047]
[1724087947142,8.753171,2586.1,2586.0,0.07232047]
[1724087947386,3.86744,2585.7,2585.3,6.15071]
[1724087947586,7.73494,2585.7,2585.2,3.86816]
[1724087947791,7.73494,2585.7,2585.4,0.07232047]
[1724087947976,7.73494,2585.7,2585.3,0.07236664]
[1724087948153,3.86768,2585.6,2585.0,2.2553]
[1724087948339,6.13734,2585.7,2585.4,0.07236664]
[1724087948543,3.86744,2585.7,2585.3,3.868]
[1724087948795,3.86744,2585.7,2585.5,0.07301284]
[1724087948992,3.86744,2585.7,2585.3,3.868]
[1724087949195,3.86744,2585.7,2585.6,0.07301284]
[1724087949646,3.86744,2585.7,2585.3,3.868]
[1724087949989,3.86729,2585.8,2585.4,3.94087284]
[1724087950290,7.73466,2585.8,2585.4,3.94087284]
[1724087950464,3.86729,2585.8,2585.4,3.94087284]
[1724087950658,7.73465,2585.8,2585.4,3.94087284]
[1724087950880,7.73465,2585.8,2585.4,0.07301284]
[1724087951082,3.86749,2585.7,2585.4,0.07301284]
[1724087951600,3.86749,2585.7,2585.2,3.86808]
[1724087951756,3.86749,2585.7,2585.5,0.07301284]
[1724087951957,3.86749,2585.7,2585.2,8.450206]
[1724087952152,7.73497,2585.7,2585.6,0.07301284]
[1724087952410,7.73497,2585.7,2585.1,3.86831]
[1724087952411,3.86774,2585.5,2585.1,3.86831]
[1724087952556,3.86774,2585.5,2585.0,6.12377]
[1724087952557,3.86791,2585.4,2585.0,6.12377]
[1724087952758,6.22837,2585.6,2585.2,0.07301284]
[1724087953001,3.86757,2585.6,2585.1,3.94138477]
[1724087953168,3.86778,2585.5,2585.1,3.86824]
[1724087953373,3.86778,2585.5,2585.2,0.07314477]
[1724087954158,3.86757,2585.6,2585.2,0.07314477]
[1724087954658,3.86757,2585.6,2585.2,3.94129477]
[1724087954862,7.36,2585.7,2585.2,4.94777825]
[1724087955059,7.36,2585.7,2585.4,3.8678]
[1724087955263,7.36,2585.7,2585.5,0.07315796]
[1724087955462,7.36,2585.7,2585.2,3.86815]
[1724087955709,7.36,2585.7,2585.3,0.07315796]
[1724087956012,3.86759,2585.6,2585.3,0.07315796]
[1724087956510,3.8678,2585.5,2585.4,0.07315796]
[1724087956723,3.8678,2585.5,2585.0,2.2553]
[1724087956880,3.8678,2585.5,2585.1,0.07315796]
[1724087957211,3.86809,2585.3,2584.9,3.86851]
[1724087957414,3.86809,2585.3,2585.2,0.07315796]
[1724087957575,3.86809,2585.3,2584.9,3.86851]
[1724087957779,3.86809,2585.3,2585.2,0.07315796]
[1724087957979,3.86789,2585.4,2584.9,3.86851]
[1724087958198,3.86758,2585.6,2585.2,0.07315796]
[1724087958380,3.86751,2585.7,2585.2,2.4426]
[1724087958582,3.86751,2585.7,2585.3,0.07315796]